[Event "48th Indian U15-ch Girls 2023"]
[Site "Jalgaon"]
[Date "2024.01.04"]
[Round "11.1"]
[White "Mrittika Mallick"]
[Black "Sachi Jain"]
[Result "1/2-1/2"]
[ECO "C07"]
[WhiteElo "1970"]
[BlackElo "1844"]
[Annotator "RC"]
[PlyCount "95"]
[EventDate "2023.12.30"]
[EventType "swiss"]
[EventCountry "IND"]
[SourceTitle "playchess.com"]
[Source "ChessBase"]
[SourceQuality "1"]
[TimeControl "5400+30"]

1. e4 {[%emt 0:00:02]} e6 {[%emt 0:01:24]} 2. d4 {[%emt 0:00:12]} d5 {[%emt 0:00:08]} 3. Nd2 {[%emt 0:00:10]} c5 {[%emt 0:00:12]} 4. Ngf3 {[%emt 0:00:13]} cxd4 {[%emt 0:00:30]} 5. exd5 {[%emt 0:00:12]} Qxd5 {[%emt 0:00:09]} 6. Bc4 {[%emt 0:00:33]} Qd7 {[%emt 0:00:07]} 7. O-O {[%emt 0:00:47]} Nf6 {[%emt 0:00:19]} 8. Nb3 {[%emt 0:00:36]} Nc6 {[%emt 0:00:08]} 9. Nbxd4 {[%emt 0:00:52]} Nxd4 {[%emt 0:00:08]} 10. Qxd4 {[%emt 0:01:17]} Qxd4 {[%emt 0:00:26]} 11. Nxd4 {[%emt 0:00:08]} Bd7 {[%emt 0:00:16]} 12. Bb5 {[%emt 0:02:05]} Bc5 {[%emt 0:07:45]} 13. Bxd7+ {[%emt 0:00:23]} Nxd7 {[%emt 0:00:14]} 14. Nb3 {[%emt 0:01:48]} Bb6 {[%emt 0:04:03]} 15. a4 {[%emt 0:01:33]} a6 {[%emt 0:03:15]} 16. Bf4 {[%emt 0:24:13]} Rc8 {[%emt 0:03:55]} 17. c3 {[%emt 0:02:39]} Nc5 {[%emt 0:08:56]} 18. Nxc5 {[%emt 0:00:54]} Bxc5 {[%emt 0:00:07]} 19. Rfd1 {[%emt 0:01:03]} f6 {[%emt 0:05:52]} 20. Bd6 {[%emt 0:01:44]} Bxd6 {[%emt 0:01:06]} 21. Rxd6 {[%emt 0:00:01]} Ke7 {[%emt 0:00:01]} 22. Rb6 {[%emt 0:00:45]} Rc7 {[%emt 0:00:43]} 23. Re1 {[%emt 0:00:59]} e5 {[%emt 0:05:50]} 24. f4 {[%emt 0:00:42]} Kf7 {[%emt 0:11:28]} 25. fxe5 {[%emt 0:00:12]} Re8 {[%emt 0:05:27]} 26. e6+ {[%emt 0:00:19]} Kg6 {[%emt 0:00:01]} 27. Rd1 {[%emt 0:03:39]} Ree7 {[%emt 0:01:06]} 28. Kf2 {[%emt 0:03:19]} Kf5 {[%emt 0:00:38]} 29. Rd5+ {[%emt 0:00:40]} Ke4 {[%emt 0:01:36]} 30. Rd8 {[%emt 0:06:16]} Ke5 {[%emt 0:01:22]} 31. Rdd6 {[%emt 0:03:41]} Rc4 {[%emt 0:02:32]} 32. Rd7 {[%emt 0:03:15]} Rxe6 {[%emt 0:01:42]} 33. Rxe6+ {[%emt 0:00:38]} Kxe6 {[%emt 0:00:02]} 34. Rxg7 {[%emt 0:00:43]} Rxa4 {[%emt 0:00:11]} 35. Rxh7 {[%emt 0:01:22]} b5 {[%emt 0:00:23]} 36. b4 {[%emt 0:03:08]} a5 {[%emt 0:07:15]} 37. bxa5 {[%emt 0:00:47]} Rxa5 {[%emt 0:00:04]} 38. Rc7 {[%emt 0:02:51]} Ra2+ {[%emt 0:01:09]} 39. Kf3 {[%emt 0:00:21]} Rb2 {[%emt 0:00:48]} 40. h4 {[%emt 0:01:18]} b4 {[%emt 0:02:08]} 41. cxb4 {[%emt 0:00:40]} Rxb4 {[%emt 0:00:14]} 42. h5 {[%emt 0:00:57]} f5 {[%emt 0:11:22]} 43. h6 {[%emt 0:01:24]} Kf6 {[%emt 0:00:58]} 44. h7 {[%emt 0:01:18]} Rh4 {[%emt 0:01:02]} 45. Kg3 {[%emt 0:01:21]} Rh1 {[%emt 0:00:42]} 46. Kf4 {[%emt 0:01:25]} Rh4+ {[%emt 0:00:31]} 47. Kf3 {[%emt 0:00:19]} Kg6 {[%emt 0:00:11]} 48. g3 {[%emt 0:00:08]} 1/2-1/2

[Event "48th Indian U15-ch Girls 2023"]
[Site "Jalgaon"]
[Date "2024.01.04"]
[Round "11.2"]
[White "Sherali Pattnaik"]
[Black "Sneha Halder"]
[Result "0-1"]
[ECO "B11"]
[WhiteElo "1575"]
[BlackElo "1766"]
[Annotator "NA RC"]
[PlyCount "94"]
[EventDate "2023.12.30"]
[EventType "swiss"]
[EventCountry "IND"]
[SourceTitle "playchess.com"]
[Source "ChessBase"]
[SourceQuality "1"]
[TimeControl "5400+30"]

1. e4 {[%emt 0:02:05]} c6 {[%emt 0:00:30]} 2. Nc3 {[%emt 0:00:15]} d5 {[%emt 0:00:07]} 3. Nf3 {[%emt 0:00:04]} d4 {[%emt 0:02:19]} 4. Ne2 {[%emt 0:00:20]} c5 {[%emt 0:00:06]} 5. c3 {[%emt 0:00:04]} dxc3 {[%emt 0:01:44]} 6. Nxc3 {[%emt 0:00:46]} Nc6 {[%emt 0:00:09]} 7. Bc4 {[%emt 0:00:44]} e6 {[%emt 0:00:18]} 8. O-O {[%emt 0:02:47]} Nge7 {[%emt 0:01:10]} 9. Re1 {[%emt 0:06:36]} Ng6 {[%emt 0:00:34]} 10. e5 {[%emt 0:00:44]} Be7 {[%emt 0:00:40]} 11. b3 {[%emt 0:08:21]} O-O {[%emt 0:01:37]} 12. Bb2 {[%emt 0:04:26]} b6 {[%emt 0:00:59]} 13. Bf1 {[%emt 0:18:37]} Bb7 {[%emt 0:00:49]} 14. Ne2 {[%emt 0:01:10]} Nb4 {[%emt 0:03:57]} 15. Nc1 {[%emt 0:01:25]} Bxf3 {[%emt 0:12:45]} 16. gxf3 {[%emt 0:00:07]} Bg5 {[%emt 0:01:32]} 17. d3 {[%emt 0:02:43]} Bf4 {[%emt 0:00:38]} 18. Qe2 {[%emt 0:02:53]} Qh4 {[%emt 0:09:04]} 19. h3 {[%emt 0:00:03]} Rad8 {[%emt 0:10:37]} 20. a3 {[%emt 0:00:18]} Nc6 {[%emt 0:04:02]} 21. Qe4 {[%emt 0:02:58]} Qg5+ {[%emt 0:01:07]} 22. Kh1 {[%emt 0:00:02]} Nd4 {[%emt 0:00:41]} 23. Rd1 {[%emt 0:00:52]} Rd5 {[%emt 0:01:04]} 24. Bxd4 {[%emt 0:01:18]} Rxd4 {[%emt 0:00:03]} 25. Qe2 {[%emt 0:00:36]} Bxe5 {[%emt 0:00:33]} 26. Bg2 {[%emt 0:00:13]} Qf4 {[%emt 0:01:14]} 27. Kg1 {[%emt 0:00:01]} Qh2+ {[%emt 0:00:12]} 28. Kf1 {[%emt 0:00:01]} Nh4 {[%emt 0:00:01]} 29. f4 {[%emt 0:00:30]} Qxg2+ {[%emt 0:00:14]} 30. Ke1 {[%emt 0:00:00]} Nf3+ {[%emt 0:00:39]} 31. Qxf3 {[%emt 0:00:02]} Qxf3 {[%emt 0:00:01]} 32. Ne2 {[%emt 0:00:01]} Rxf4 {[%emt 0:00:36]} 33. Nxf4 {[%emt 0:00:02]} Bxa1 {[%emt 0:00:12]} 34. Rxa1 {[%emt 0:00:04]} Qxf4 {[%emt 0:00:06]} 35. Rd1 {[%emt 0:00:01]} Qf3 {[%emt 0:00:12]} 36. Kd2 {[%emt 0:00:02]} Qxh3 {[%emt 0:00:08]} 37. Kc1 {[%emt 0:00:04]} Rd8 {[%emt 0:00:05]} 38. Kb1 {[%emt 0:00:03]} Rxd3 {[%emt 0:00:04]} 39. Rxd3 {[%emt 0:00:01]} Qxd3+ {[%emt 0:00:02]} 40. Ka2 {[%emt 0:00:00]} h5 {[%emt 0:00:29]} 41. a4 {[%emt 0:00:03]} h4 {[%emt 0:00:06]} 42. a5 {[%emt 0:00:02]} h3 {[%emt 0:00:04]} 43. axb6 {[%emt 0:00:02]} axb6 {[%emt 0:00:07]} 44. Ka3 {[%emt 0:00:03]} h2 {[%emt 0:00:06]} 45. Ka2 {[%emt 0:00:04]} h1=Q {[%emt 0:00:04]} 46. f4 {[%emt 0:00:03]} Qhb1+ {[%emt 0:00:08]} 47. Ka3 {[%emt 0:00:01]} Qa1# {[%emt 0:00:08]} 0-1

[Event "48th Indian U15-ch Girls 2023"]
[Site "Jalgaon"]
[Date "2024.01.04"]
[Round "11.3"]
[White "Shubhi Gupta"]
[Black "Akshaya Sathi"]
[Result "1-0"]
[ECO "E61"]
[WhiteElo "1902"]
[BlackElo "1542"]
[Annotator "RC"]
[PlyCount "61"]
[EventDate "2023.12.30"]
[EventType "swiss"]
[EventCountry "IND"]
[SourceTitle "playchess.com"]
[Source "ChessBase"]
[SourceQuality "1"]
[TimeControl "5400+30"]

1. d4 {[%emt 0:02:06]} Nf6 {[%emt 0:00:26]} 2. Nf3 {[%emt 0:00:29]} g6 {[%emt 0:00:54]} 3. c4 {[%emt 0:00:35]} Bg7 {[%emt 0:00:26]} 4. Nc3 {[%emt 0:00:15]} O-O {[%emt 0:00:22]} 5. Bg5 {[%emt 0:00:24]} d6 {[%emt 0:01:06]} 6. e3 {[%emt 0:00:58]} c5 {[%emt 0:00:55]} 7. d5 {[%emt 0:01:33]} h6 {[%emt 0:01:32]} 8. Bh4 {[%emt 0:00:55]} a6 {[%emt 0:05:16]} 9. a4 {[%emt 0:01:27]} Qb6 {[%emt 0:05:50]} 10. Qd2 {[%emt 0:01:30]} e6 {[%emt 0:02:27]} 11. a5 {[%emt 0:02:01]} Qc7 {[%emt 0:02:10]} 12. Bd3 {[%emt 0:03:08]} exd5 {[%emt 0:03:14]} 13. Bxf6 {[%emt 0:00:34]} Bxf6 {[%emt 0:00:19]} 14. Nxd5 {[%emt 0:00:18]} Qd8 {[%emt 0:00:14]} 15. O-O {[%emt 0:01:49]} Be6 {[%emt 0:06:49]} 16. Nb6 {[%emt 0:04:06]} Ra7 {[%emt 0:08:57]} 17. Be4 {[%emt 0:08:45]} Be7 {[%emt 0:16:17]} 18. Bd5 {[%emt 0:04:11]} Nd7 {[%emt 0:03:45]} 19. Qc2 {[%emt 0:07:16]} Kg7 {[%emt 0:06:47]} 20. Qb3 {[%emt 0:00:54]} Qc7 {[%emt 0:01:17]} 21. Rfd1 {[%emt 0:01:15]} Bd8 {[%emt 0:04:54]} 22. Bxe6 {[%emt 0:08:11]} fxe6 {[%emt 0:00:08]} 23. Rxd6 {[%emt 0:02:47]} Qxd6 {[%emt 0:06:15]} 24. Rd1 {[%emt 0:00:05]} Qc6 {[%emt 0:00:17]} 25. Rxd7+ {[%emt 0:00:17]} Kg8 {[%emt 0:01:31]} 26. Qd3 {[%emt 0:00:22]} e5 {[%emt 0:06:52]} 27. Rxd8 {[%emt 0:00:05]} e4 {[%emt 0:00:20]} 28. Rxf8+ {[%emt 0:00:04]} Kxf8 {[%emt 0:00:03]} 29. Qd8+ {[%emt 0:00:06]} Kg7 {[%emt 0:00:24]} 30. Qe7+ {[%emt 0:00:07]} Kg8 {[%emt 0:00:44]} 31. Ne5 {[%emt 0:00:08]} 1-0

[Event "48th Indian U15-ch Girls 2023"]
[Site "Jalgaon"]
[Date "2024.01.04"]
[Round "11.4"]
[White "Nivedita V C"]
[Black "Bhat Sannidhi Ramakrishna"]
[Result "0-1"]
[ECO "B00"]
[WhiteElo "1638"]
[BlackElo "1637"]
[Annotator "NA RC"]
[PlyCount "134"]
[EventDate "2023.12.30"]
[EventType "swiss"]
[EventCountry "IND"]
[SourceTitle "playchess.com"]
[Source "ChessBase"]
[SourceQuality "1"]
[TimeControl "5400+30"]

1. d4 {[%emt 0:00:05]} Nc6 {[%emt 0:00:12]} 2. d5 {[%emt 0:00:05]} Nb8 {[%emt 0:00:08]} 3. e4 {[%emt 0:00:05]} d6 {[%emt 0:00:11]} 4. Nc3 {[%emt 0:00:03]} Nf6 {[%emt 0:00:33]} 5. h3 {[%emt 0:00:16]} g6 {[%emt 0:00:26]} 6. Be3 {[%emt 0:00:05]} Bg7 {[%emt 0:00:16]} 7. Qd2 {[%emt 0:00:11]} c6 {[%emt 0:01:54]} 8. O-O-O {[%emt 0:00:58]} b5 {[%emt 0:13:44]} 9. dxc6 {[%emt 0:01:45]} b4 {[%emt 0:00:08]} 10. Bb5 {[%emt 0:24:53]} Qa5 {[%emt 0:06:35]} 11. Nd5 {[%emt 0:00:25]} Nxd5 {[%emt 0:06:04]} 12. Qxd5 {[%emt 0:00:24]} O-O {[%emt 0:01:46]} 13. Bc4 {[%emt 0:05:50]} Qc7 {[%emt 0:01:26]} 14. Qd2 {[%emt 0:05:40]} Nxc6 {[%emt 0:02:07]} 15. Bh6 {[%emt 0:00:50]} Bxh6 {[%emt 0:14:18]} 16. Qxh6 {[%emt 0:00:04]} Ne5 {[%emt 0:15:28]} 17. Bd5 {[%emt 0:07:14]} Bb7 {[%emt 0:00:34]} 18. Bxb7 {[%emt 0:09:49]} Qxb7 {[%emt 0:00:03]} 19. f4 {[%emt 0:01:01]} Nc4 {[%emt 0:00:30]} 20. Nf3 {[%emt 0:00:58]} f6 {[%emt 0:00:45]} 21. Rd4 {[%emt 0:05:11]} Rac8 {[%emt 0:01:46]} 22. f5 {[%emt 0:01:02]} e5 {[%emt 0:06:26]} 23. fxe6 {[%emt 0:03:48]} Qa6 {[%emt 0:02:29]} 24. Kb1 {[%emt 0:00:18]} Qb5 {[%emt 0:00:10]} 25. Nd2 {[%emt 0:03:37]} Ne5 {[%emt 0:08:53]} 26. Nb3 {[%emt 0:01:39]} a5 {[%emt 0:01:44]} 27. Qd2 {[%emt 0:02:57]} Nc4 {[%emt 0:03:40]} 28. Qd3 {[%emt 0:00:28]} Qc6 {[%emt 0:01:34]} 29. Rd5 {[%emt 0:05:12]} Qa8 {[%emt 0:04:44]} 30. Nd2 {[%emt 0:01:26]} Ne5 {[%emt 0:00:52]} 31. Qb5 {[%emt 0:00:12]} Rc6 {[%emt 0:00:43]} 32. Nb3 {[%emt 0:04:23]} Rb8 {[%emt 0:05:13]} 33. Qf1 {[%emt 0:00:58]} a4 {[%emt 0:00:48]} 34. Ra5 {[%emt 0:06:09]} axb3 {[%emt 0:00:17]} 35. Rxa8 {[%emt 0:00:07]} bxc2+ {[%emt 0:00:03]} 36. Kc1 {[%emt 0:00:32]} Rxa8 {[%emt 0:00:02]} 37. Qb5 {[%emt 0:04:38]} Rxa2 {[%emt 0:01:45]} 38. Qb8+ {[%emt 0:00:17]} Kg7 {[%emt 0:00:18]} 39. e7 {[%emt 0:00:42]} Nd7 {[%emt 0:00:44]} 40. Qb7 {[%emt 0:01:38]} Ra1+ {[%emt 0:00:26]} 41. Kd2 {[%emt 0:00:02]} Rxh1 {[%emt 0:00:25]} 42. Qxc6 {[%emt 0:00:07]} Kf7 {[%emt 0:00:46]} 43. Kxc2 {[%emt 0:01:04]} Kxe7 {[%emt 0:00:03]} 44. Kb3 {[%emt 0:00:49]} Rb1 {[%emt 0:00:49]} 45. Kc2 {[%emt 0:00:46]} Rf1 {[%emt 0:00:33]} 46. Kb3 {[%emt 0:00:22]} Rb1 {[%emt 0:00:15]} 47. Ka2 {[%emt 0:00:04]} Re1 {[%emt 0:00:24]} 48. Qb7 {[%emt 0:01:58]} Re2 {[%emt 0:00:27]} 49. Qxb4 {[%emt 0:01:05]} Rxg2 {[%emt 0:00:05]} 50. Qb7 {[%emt 0:00:25]} Rh2 {[%emt 0:00:27]} 51. Qb3 {[%emt 0:00:41]} Re2 {[%emt 0:00:58]} 52. Qg8 {[%emt 0:00:05]} Rxe4 {[%emt 0:00:47]} 53. Qxh7+ {[%emt 0:00:02]} Ke6 {[%emt 0:00:05]} 54. Qxg6 {[%emt 0:00:09]} Ra4+ {[%emt 0:00:17]} 55. Kb1 {[%emt 0:00:45]} Nc5 {[%emt 0:00:15]} 56. Qe8+ {[%emt 0:00:48]} Kf5 {[%emt 0:00:28]} 57. Qh5+ {[%emt 0:00:25]} Ke4 {[%emt 0:00:13]} 58. b3 {[%emt 0:00:56]} Rd4 {[%emt 0:00:17]} 59. Kc2 {[%emt 0:00:39]} f5 {[%emt 0:00:46]} 60. h4 {[%emt 0:00:21]} f4 {[%emt 0:00:21]} 61. Qh7+ {[%emt 0:00:48]} Ke3 {[%emt 0:00:10]} 62. Qe7+ {[%emt 0:00:32]} Ne4 {[%emt 0:00:08]} 63. Qg7 {[%emt 0:02:11]} f3 {[%emt 0:00:53]} 64. h5 {[%emt 0:00:43]} f2 {[%emt 0:01:08]} 65. Qh6+ {[%emt 0:00:45]} Ke2 {[%emt 0:00:28]} 66. Qg7 {[%emt 0:00:21]} Rd2+ {[%emt 0:00:05]} 67. Kc1 {[%emt 0:00:04]} f1=Q# {[%emt 0:00:03]} 0-1

[Event "48th Indian U15-ch Girls 2023"]
[Site "Jalgaon"]
[Date "2024.01.04"]
[Round "11.5"]
[White "Hanya Shah"]
[Black "Aamuktha Guntaka"]
[Result "0-1"]
[ECO "A28"]
[WhiteElo "1429"]
[BlackElo "1532"]
[Annotator "NA RC"]
[PlyCount "98"]
[EventDate "2023.12.30"]
[EventType "swiss"]
[EventCountry "IND"]
[SourceTitle "playchess.com"]
[Source "ChessBase"]
[SourceQuality "1"]
[TimeControl "5400+30"]

1. c4 {[%emt 0:00:12]} e5 {[%emt 0:01:30]} 2. Nc3 {[%emt 0:00:12]} Nf6 {[%emt 0:00:07]} 3. Nf3 {[%emt 0:00:09]} Nc6 {[%emt 0:00:10]} 4. d3 {[%emt 0:00:11]} d5 {[%emt 0:04:45]} 5. cxd5 {[%emt 0:00:48]} Nxd5 {[%emt 0:00:07]} 6. e4 {[%emt 0:00:08]} Nb6 {[%emt 0:01:55]} 7. Be2 {[%emt 0:00:36]} Be7 {[%emt 0:01:09]} 8. Be3 {[%emt 0:00:53]} Be6 {[%emt 0:01:28]} 9. O-O {[%emt 0:00:59]} O-O {[%emt 0:00:17]} 10. Qd2 {[%emt 0:03:22]} Qd7 {[%emt 0:03:18]} 11. Rad1 {[%emt 0:02:57]} Rad8 {[%emt 0:03:15]} 12. Qc1 {[%emt 0:17:11]} Qc8 {[%emt 0:09:13]} 13. Rd2 {[%emt 0:03:14]} Rd7 {[%emt 0:07:58]} 14. Rfd1 {[%emt 0:01:15]} Rfd8 {[%emt 0:03:04]} 15. h3 {[%emt 0:02:49]} f6 {[%emt 0:05:34]} 16. d4 {[%emt 0:07:30]} exd4 {[%emt 0:00:19]} 17. Bxd4 {[%emt 0:00:37]} Nc4 {[%emt 0:07:17]} 18. Bxc4 {[%emt 0:08:55]} Bxc4 {[%emt 0:00:17]} 19. b3 {[%emt 0:00:39]} Nxd4 {[%emt 0:10:47]} 20. Nxd4 {[%emt 0:02:22]} Bf7 {[%emt 0:01:17]} 21. Nf5 {[%emt 0:02:35]} Bf8 {[%emt 0:02:50]} 22. Nd5 {[%emt 0:03:49]} Rxd5 {[%emt 0:06:15]} 23. Nh6+ {[%emt 0:06:20]} gxh6 {[%emt 0:00:13]} 24. exd5 {[%emt 0:00:10]} Qd7 {[%emt 0:03:23]} 25. Qc3 {[%emt 0:05:21]} Qd6 {[%emt 0:02:02]} 26. Qe3 {[%emt 0:02:03]} a6 {[%emt 0:02:21]} 27. a4 {[%emt 0:04:56]} Re8 {[%emt 0:01:06]} 28. Qd4 {[%emt 0:02:16]} Re5 {[%emt 0:01:42]} 29. Qc4 {[%emt 0:05:32]} c6 {[%emt 0:06:43]} 30. Qg4+ {[%emt 0:01:08]} Rg5 {[%emt 0:00:16]} 31. Qd4 {[%emt 0:01:31]} Bxd5 {[%emt 0:00:32]} 32. f4 {[%emt 0:00:35]} Rg7 {[%emt 0:01:00]} 33. Kh1 {[%emt 0:00:52]} Qe6 {[%emt 0:00:39]} 34. Kh2 {[%emt 0:00:30]} Bd6 {[%emt 0:01:34]} 35. Rf1 {[%emt 0:01:10]} Bc7 {[%emt 0:01:41]} 36. Rff2 {[%emt 0:00:34]} Qe4 {[%emt 0:05:49]} 37. Qxe4 {[%emt 0:01:19]} Bxe4 {[%emt 0:00:06]} 38. g3 {[%emt 0:00:12]} f5 {[%emt 0:00:46]} 39. b4 {[%emt 0:00:12]} a5 {[%emt 0:00:52]} 40. bxa5 {[%emt 0:00:42]} Bxa5 {[%emt 0:00:06]} 41. Rb2 {[%emt 0:00:23]} Be1 {[%emt 0:00:19]} 42. Rfe2 {[%emt 0:00:35]} Bxg3+ {[%emt 0:00:08]} 43. Kg1 {[%emt 0:00:05]} Bxf4+ {[%emt 0:00:24]} 44. Kf2 {[%emt 0:00:10]} Be5 {[%emt 0:01:33]} 45. Rbd2 {[%emt 0:00:11]} Bc7 {[%emt 0:00:33]} 46. Rb2 {[%emt 0:00:14]} Bb8 {[%emt 0:01:26]} 47. h4 {[%emt 0:00:25]} Bg3+ {[%emt 0:01:05]} 48. Kg1 {[%emt 0:00:11]} Be5+ {[%emt 0:00:09]} 49. Kf1 {[%emt 0:00:07]} Bxb2 {[%emt 0:00:16]} 0-1

[Event "48th Indian U15-ch Girls 2023"]
[Site "Jalgaon"]
[Date "2024.01.04"]
[Round "11.6"]
[White "Yashvi Jain"]
[Black "Anupam M Sreekumar"]
[Result "1-0"]
[ECO "A48"]
[WhiteElo "1442"]
[BlackElo "1642"]
[Annotator "NA RC"]
[PlyCount "99"]
[EventDate "2023.12.30"]
[EventType "swiss"]
[EventCountry "IND"]
[SourceTitle "playchess.com"]
[Source "ChessBase"]
[SourceQuality "1"]
[TimeControl "5400+30"]

1. d4 {[%emt 0:01:08]} Nf6 {[%emt 0:00:22]} 2. Nf3 {[%emt 0:00:02]} g6 {[%emt 0:00:11]} 3. Bf4 {[%emt 0:00:06]} Bg7 {[%emt 0:00:08]} 4. e3 {[%emt 0:00:07]} d6 {[%emt 0:00:08]} 5. h3 {[%emt 0:00:01]} O-O {[%emt 0:00:38]} 6. Be2 {[%emt 0:00:30]} b6 {[%emt 0:00:47]} 7. O-O {[%emt 0:00:24]} Bb7 {[%emt 0:00:03]} 8. c3 {[%emt 0:00:19]} Nbd7 {[%emt 0:00:11]} 9. Nbd2 {[%emt 0:00:27]} Re8 {[%emt 0:00:30]} 10. Bc4 {[%emt 0:00:33]} e5 {[%emt 0:01:30]} 11. dxe5 {[%emt 0:04:01]} dxe5 {[%emt 0:01:26]} 12. Bh2 {[%emt 0:00:03]} Qe7 {[%emt 0:04:21]} 13. Qb3 {[%emt 0:00:32]} Nc5 {[%emt 0:01:02]} 14. Qc2 {[%emt 0:01:08]} Nfe4 {[%emt 0:01:02]} 15. b4 {[%emt 0:01:03]} Nxd2 {[%emt 0:00:57]} 16. Nxd2 {[%emt 0:00:12]} Ne6 {[%emt 0:01:57]} 17. Rfd1 {[%emt 0:00:25]} Rad8 {[%emt 0:02:10]} 18. Bb5 {[%emt 0:00:56]} Rf8 {[%emt 0:02:52]} 19. Qa4 {[%emt 0:02:31]} a6 {[%emt 0:01:03]} 20. Be2 {[%emt 0:00:37]} Ng5 {[%emt 0:01:58]} 21. Rac1 {[%emt 0:01:47]} f5 {[%emt 0:01:24]} 22. Bxa6 {[%emt 0:12:10]} Ba8 {[%emt 0:07:18]} 23. Qb3+ {[%emt 0:08:45]} Kh8 {[%emt 0:00:46]} 24. f3 {[%emt 0:05:50]} Bh6 {[%emt 0:18:39]} 25. c4 {[%emt 0:04:05]} c5 {[%emt 0:05:26]} 26. a3 {[%emt 0:00:59]} Bg7 {[%emt 0:03:06]} 27. bxc5 {[%emt 0:09:53]} Qxc5 {[%emt 0:00:52]} 28. Nf1 {[%emt 0:06:54]} f4 {[%emt 0:06:30]} 29. Qb4 {[%emt 0:02:11]} Qc7 {[%emt 0:05:25]} 30. c5 {[%emt 0:02:25]} Rxd1 {[%emt 0:01:58]} 31. Rxd1 {[%emt 0:00:49]} bxc5 {[%emt 0:00:03]} 32. Qb5 {[%emt 0:01:10]} fxe3 {[%emt 0:07:00]} 33. Nxe3 {[%emt 0:01:53]} Rd8 {[%emt 0:01:49]} 34. Rxd8+ {[%emt 0:01:54]} Qxd8 {[%emt 0:00:01]} 35. Qxc5 {[%emt 0:01:13]} e4 {[%emt 0:00:15]} 36. fxe4 {[%emt 0:08:32]} Nxe4 {[%emt 0:01:01]} 37. Qb5 {[%emt 0:00:48]} Qf8 {[%emt 0:01:50]} 38. Be5 {[%emt 0:04:51]} h5 {[%emt 0:05:30]} 39. Bxg7+ {[%emt 0:00:38]} Kxg7 {[%emt 0:00:07]} 40. Qb2+ {[%emt 0:00:44]} Kh7 {[%emt 0:00:26]} 41. Bc4 {[%emt 0:06:21]} Qc5 {[%emt 0:03:48]} 42. Qb3 {[%emt 0:04:02]} Nd2 {[%emt 0:06:17]} 43. Bg8+ {[%emt 0:00:15]} Kh6 {[%emt 0:00:07]} 44. Qd3 {[%emt 0:01:01]} Ne4 {[%emt 0:01:46]} 45. Bc4 {[%emt 0:00:38]} h4 {[%emt 0:03:36]} 46. Kh2 {[%emt 0:02:50]} Nf2 {[%emt 0:03:05]} 47. Qd2 {[%emt 0:01:16]} Qe5+ {[%emt 0:02:03]} 48. Kg1 {[%emt 0:00:36]} Nxh3+ {[%emt 0:00:32]} 49. gxh3 {[%emt 0:00:43]} Qg5+ {[%emt 0:00:24]} 50. Ng4+ {[%emt 0:00:13]} 1-0

[Event "48th Indian U15-ch Girls 2023"]
[Site "Jalgaon"]
[Date "2024.01.04"]
[Round "11.7"]
[White "Ananya Raman"]
[Black "Saparya Ghosh"]
[Result "0-1"]
[ECO "B33"]
[WhiteElo "1505"]
[BlackElo "1662"]
[Annotator "NA RC"]
[PlyCount "74"]
[EventDate "2023.12.30"]
[EventType "swiss"]
[EventCountry "IND"]
[SourceTitle "playchess.com"]
[Source "ChessBase"]
[SourceQuality "1"]
[TimeControl "5400+30"]

1. e4 {[%emt 0:01:21]} c5 {[%emt 0:02:09]} 2. Nf3 {[%emt 0:01:47]} Nc6 {[%emt 0:00:04]} 3. d4 {[%emt 0:00:19]} cxd4 {[%emt 0:00:05]} 4. Nxd4 {[%emt 0:00:06]} Nf6 {[%emt 0:00:07]} 5. Nc3 {[%emt 0:00:21]} e5 {[%emt 0:00:05]} 6. Ndb5 {[%emt 0:00:42]} d6 {[%emt 0:00:06]} 7. Nd5 {[%emt 0:00:15]} Nxd5 {[%emt 0:00:06]} 8. exd5 {[%emt 0:00:06]} Nb8 {[%emt 0:00:07]} 9. c4 {[%emt 0:00:24]} Be7 {[%emt 0:00:31]} 10. Bd3 {[%emt 0:00:42]} O-O {[%emt 0:00:22]} 11. O-O {[%emt 0:00:35]} f5 {[%emt 0:00:50]} 12. c5 {[%emt 0:01:32]} a6 {[%emt 0:02:32]} 13. cxd6 {[%emt 0:00:31]} Bxd6 {[%emt 0:00:25]} 14. Nxd6 {[%emt 0:01:30]} Qxd6 {[%emt 0:00:04]} 15. Be2 {[%emt 0:00:40]} Nd7 {[%emt 0:09:42]} 16. a4 {[%emt 0:19:50]} b6 {[%emt 0:15:31]} 17. b3 {[%emt 0:05:14]} Rd8 {[%emt 0:02:28]} 18. Ba3 {[%emt 0:03:11]} Nc5 {[%emt 0:05:52]} 19. a5 {[%emt 0:16:59]} Bb7 {[%emt 0:07:09]} 20. axb6 {[%emt 0:06:24]} Qxb6 {[%emt 0:00:35]} 21. Bc4 {[%emt 0:00:13]} Ne4 {[%emt 0:02:12]} 22. Bb2 {[%emt 0:04:31]} Qd6 {[%emt 0:03:16]} 23. Ra5 {[%emt 0:05:36]} Kh8 {[%emt 0:01:06]} 24. Qa1 {[%emt 0:10:28]} Re8 {[%emt 0:02:00]} 25. f4 {[%emt 0:01:52]} Qb6+ {[%emt 0:03:09]} 26. Kh1 {[%emt 0:00:07]} Nf2+ {[%emt 0:03:05]} 27. Rxf2 {[%emt 0:00:08]} Qxf2 {[%emt 0:00:12]} 28. Bxe5 {[%emt 0:04:38]} Re7 {[%emt 0:03:49]} 29. Ra2 {[%emt 0:00:04]} Qc5 {[%emt 0:06:52]} 30. d6 {[%emt 0:01:25]} Rd7 {[%emt 0:00:11]} 31. Be6 {[%emt 0:05:51]} Rc8 {[%emt 0:03:34]} 32. h4 {[%emt 0:08:09]} Qe3 {[%emt 0:06:37]} 33. Bxg7+ {[%emt 0:00:38]} Rxg7 {[%emt 0:00:06]} 34. Bxc8 {[%emt 0:00:04]} Bxg2+ {[%emt 0:00:56]} 35. Kh2 {[%emt 0:00:42]} Qg3+ {[%emt 0:01:30]} 36. Kg1 {[%emt 0:00:04]} Bf3+ {[%emt 0:00:10]} 37. Kf1 {[%emt 0:00:23]} Qg1# {[%emt 0:00:04]} 0-1